Cogmind - Beta 15 @@@ ROGUE MODE // 2025.05.08 @ 13:54:53 Player: AnotherZach Result: Destroyed by 38-D26(R) with Subdweller Machine Gun Performance ------------- Evolutions (0) 0 Regions Visited (2) 400 Robots Destroyed (24) 120 Value Destroyed (586) 586 Prototype IDs (0) 0 Alien Tech Used (0) 0 Bonus (0) 0 TOTAL SCORE: 1106 Bonus ------- None Cogmind --------- Core Integrity 0/250 Matter 255/300 Energy 183/250 System Corruption 1% Temperature Cool (0) Movement Walking (190) Ox1 Location -10/Subcaves Parts ------- > --- POWER (1) -------- Ion Engine > --- PROPULSION (2) --- Aluminum Leg Aluminum Leg > --- UTILITY (2) ------ Improved Heat Sink Large Storage Unit > --- WEAPON (2) ------- Beam Cannon Beam Cannon > --- INVENTORY (15) --- Aluminum Leg Aluminum Leg Improved Hover Unit Improved Hover Unit Improved Hover Unit Heat Sink Small Storage Unit Structural Scanner Seismic Detector Beam Cannon Beam Cannon Beam Cannon Light Cannon Datajack Peak State ------------ > --- POWER ------------ Ion Engine > --- PROPULSION ------- Improved Hover Unit Improved Hover Unit > --- UTILITY ---------- Small Storage Unit Seismic Detector > --- WEAPON ----------- Autogun Autogun > --- INVENTORY -------- Light Treads Light Treads Improved Hover Unit Improved Hover Unit Tractor Beam Autogun Autogun [Rating: 12] Favorites ----------- Power Ion Engine Engine Ion Engine Propulsion Light Treads Treads Light Treads Leg Aluminum Leg Hover Unit Improved Hover Unit Utility Large Storage Unit Device Tractor Beam Storage Large Storage Unit Weapon Autogun Energy Gun Small Laser Energy Cannon Beam Cannon Ballistic Gun Autogun Build | -11 -10 -10 ------- Run | Yrd Mat Sub Slots Evolved . | . . . Power . | . . . Propulsion . | . . . Utility . | . . . Weapon . | . . . Parts Attached 26 | 5 19 2 Power 2 | . 2 . Engine 2 | . 2 . Core . | . . . Reactor . | . . . Propulsion 9 | 2 6 1 Treads 2 | 2 . . Leg 5 | . 4 1 Wheel . | . . . Hover 2 | . 2 . Flight . | . . . Utility 7 | 1 5 1 Device 5 | 1 3 1 Storage 2 | . 2 . Processor . | . . . Hackware . | . . . Protection . | . . . Artifact . | . . . Weapon 8 | 2 6 . Energy Gun 1 | 1 . . Energy Cannon 2 | . 2 . Ballistic Gun 5 | 1 4 . Ballistic Cannon . | . . . Launcher . | . . . Special Weapon . | . . . Impact Weapon . | . . . Slashing Weapon . | . . . Piercing Weapon . | . . . Special Melee Weapon . | . . . Unidentified Prototypes . | . . . Parts Lost 5 | . 4 1 Power . | . . . Propulsion 2 | . 1 1 Utility 1 | . 1 . Weapon 2 | . 2 . Highest Loss Streak 4 | . 4 1 To Critical Strikes . | . . . Average Backups 11 | 2 12 14 Power . | . . . Propulsion 4 | . 5 5 Utility 3 | 1 3 4 Weapon 2 | . 2 4 Tool/Special . | . . . Unused Backups 14 | . 3 11 Power . | . . . Propulsion 5 | . 1 4 Utility 3 | . 1 2 Weapon 5 | . 1 4 Tool/Special 1 | . . 1 Average Slot Usage (%) 97 | . 97 100 Engine 13 | . 13 14 Treads 11 | . 12 . Leg 11 | . 10 28 Hover 5 | . 5 . Device 13 | . 13 14 Storage 13 | . 13 14 Energy Cannon 6 | . 5 28 Ballistic Gun 20 | . 21 . Peak Build Rating 12 | 5 12 10 Average Rating 9 | 3 10 9 On Entrance 4 | . 4 10 Naked Turns . | . . . Heaviest Build 32 | 3 32 32 Greatest Support 40 | 20 40 20 Greatest Overweight (x) 1 | . 1 1 Average Overweight (x) . | . . 1 Largest Inventory Capacity 15 | 5 15 15 Average Capacity 12 | 5 13 15 Most Carried 15 | 5 15 15 Average Carried 11 | 2 12 14 Final Capacity 15 | 5 15 15 Final Carried 15 | 5 15 14 Class Distribution -------------------- 68% | Mutant 31% | Scavenger-Mutant Dominant Class ---------------- Mutant | -10/Materials Mutant | -10/Subcaves Resources | -11 -10 -10 ----------- Run | Yrd Mat Sub Matter Collected 778 | 277 501 . Remotely 259 | . 259 . Salvage Created 794 | 150 595 49 Parts 60 | 11 46 3 Haulers Intercepted . | . . . Recyclers Shooed 1 | . 1 . Parts Field Recycled . | . . . Retrieved Matter . | . . . Parts Self-Destructed . | . . . Prevented . | . . . Kills | -11 -10 -10 ------- Run | Yrd Mat Sub Combat Hostiles Destroyed 14 | . 13 1 Guns 10 | . 10 . Cannons 3 | . 2 1 AOE 1 | . 1 . Classes Destroyed 6 | 2 3 1 Worker 5 | . 5 . Tunneler 3 | 3 . . Recycler 1 | 1 . . Watcher 1 | . 1 . Grunt 13 | . 13 . Subdweller 1 | . . 1 Best Kill Streak 6 | 4 6 1 Combat Bots Only 5 | . 5 1 Max Kills in Single Turn 2 | 1 2 1 Gunslinging 1 | . 1 . Exploded 1 | . 1 . Melee . | . . . Uniques/NPCs Destroyed . | . . . Combat | -11 -10 -10 -------- Run | Yrd Mat Sub Hostile Shots Fired 94 | . 78 16 Missed 23 | . 21 2 Hits 71 | . 57 14 Projectile 71 | . 57 14 Critical Strikes 1 | . . 1 Damage Taken 1132 | . 827 305 Core 256 | . 163 93 Absorbed by Shields . | . . . Core Remaining (%) 100 | 100 . . Volleys Fired 59 | 9 43 7 Largest 2 | 2 2 2 Hottest 120 | 60 120 120 Shots Fired 118 | 18 86 14 Gun 100 | 18 82 . Cannon 18 | . 4 14 Launcher . | . . . Special . | . . . Kinetic 91 | 9 82 . Thermal 27 | 9 4 14 Explosive . | . . . Electromagnetic . | . . . Robot Hit Streak 13 | 7 11 13 Robot Miss Streak 5 | 2 5 1 Penetration Max . | . . . Secondary Targets 5 | . 5 . Max Gunslinging Chain 1 | . 1 . Shots Hit Robots 80 | 13 55 12 Core Hits 33 | 5 24 4 Critical Kills 1 | . 1 . Critical Parts Destroyed . | . . . Critical Strikes 1 | . 1 . Destroy 1 | . 1 . Melee Attacks . | . . . Impact . | . . . Slashing . | . . . Piercing . | . . . Sneak Attacks . | . . . Combat Hostiles . | . . . Follow-up Attacks . | . . . Damage Inflicted 1615 | 156 1247 212 Guns 1023 | 156 867 . Cannons 269 | . 57 212 Explosions 318 | . 318 . Melee . | . . . Ramming 5 | . 5 . Kinetic 933 | 66 867 . Thermal 677 | 90 375 212 Explosive . | . . . Electromagnetic . | . . . Impact . | . . . Slashing . | . . . Piercing . | . . . Highest Corruption 1 | . 1 1 Average Corruption 1 | . 1 1 Corruption Purged . | . . . Corruption Blocked . | . . . Effects 7 | . 6 1 Message Errors 2 | . 2 . Heat Flow Errors 2 | . 2 . Energy Discharges 2 | . 1 1 Data Loss (minor) 1 | . 1 . Overload Shots . | . . . Overflow Damage 11 | . 11 . Projectiles . | . . . Explosions 11 | . 11 . Melee . | . . . Knockbacks . | . . . Impact . | . . . Kinetic . | . . . Secondary . | . . . Self-Inflicted Damage 162 | . 162 . Shots 2 | . 2 . Rammed 1 | . 1 . Targets Rammed 1 | . 1 . Kicked . | . . . Crushed . | . . . Highest Temperature 175 | . 175 . Average Temperature 43 | . 43 . Received Heat Transfer 369 | . 369 . Siege Activations . | . . . Martial Activations . | . . . Shielding Activations . | . . . Robots Disrupted . | . . . Combat Hostiles . | . . . Robots Corrupted . | . . . Combat Hostiles . | . . . Parts Fried . | . . . Impact Corruptions . | . . . Robots Melted . | . . . Combat Hostiles . | . . . Parts Melted . | . . . Heat Transferred 1105 | 200 461 444 Parts Sabotaged . | . . . Parts Stolen . | . . . Parts Stripped . | . . . Power Chain Reactions . | . . . Alert | -11 -10 -10 ------- Run | Yrd Mat Sub Maximum Alert Level . | . . . Low Security (%) 100 | 100 100 . Level 1 . | . . . Level 2 . | . . . Level 3 . | . . . Level 4 . | . . . Level 5 . | . . . High Security . | . . . Max Security . | . . . Peak Influence 139 | 10 139 . Initial 3 | . 3 . Average 52 | 1 56 . Influence Increases 504 | 20 484 . Destroy 0b10 Robot/C 260 | . 260 . Destroy 0b10 Robot/NC 50 | 20 30 . Destroy Leader 52 | . 52 . Successful Hack 37 | . 37 . Select Force Hacks 30 | . 30 . Disable Machine 45 | . 45 . Destroy Structure 30 | . 30 . Influence Decreases 484 | 15 392 77 Entered New Map 49 | . 2 47 Time Decay 349 | 15 314 20 Lost Part 50 | . 40 10 Purge Threat 36 | . 36 . Squads Dispatched 3 | . 3 . Investigation 2 | . 2 . Extermination . | . . . Reinforcement 1 | . 1 . Assault . | . . . Garrison . | . . . Intercept . | . . . Searches Triggered . | . . . Construction Impeded . | . . . Haulers Reinforced . | . . . Active Scanning Responses . | . . . Cargo Convoy Interrupts . | . . . Stealth | -11 -10 -10 --------- Run | Yrd Mat Sub Distress Signals 2 | . 2 . Communications Jammed . | . . . Distress Signals . | . . . Times Spotted 21 | . 17 4 Peak Tracking Total 6 | . 6 3 Tactical Retreats . | . . . Traps | -11 -10 -10 ------- Run | Yrd Mat Sub Traps Triggered 1 | . 1 . Indirectly . | . . . Trap Hack Attempts . | . . . Triggered . | . . . Disarmed . | . . . Reprogrammed . | . . . Reused . | . . . Traps Extracted . | . . . Installed . | . . . Triggered . | . . . Machines | -11 -10 -10 ---------- Run | Yrd Mat Sub Machines Disabled 4 | . 4 . Max in Single Turn 3 | . 3 . Machines Repaired . | . . . Machines Dismantled . | . . . Machines Sabotaged . | . . . Overloaded Fab Kills . | . . . Hacking | -11 -10 -10 --------- Run | Yrd Mat Sub Machines Accessed 4 | . 4 . Terminals 3 | . 3 . Fabricators . | . . . Repair Stations . | . . . Recycling Units 1 | . 1 . Scanalyzers . | . . . Garrison Access . | . . . Total Hacks 12 | . 12 . Successful 8 | . 8 . Failed 4 | . 4 . Catastrophic . | . . . Database Lockouts . | . . . Manual 12 | . 12 . Terminals 11 | . 11 . Fabricators . | . . . Repair Stations . | . . . Recycling Units 1 | . 1 . Scanalyzers . | . . . Garrison Access . | . . . Terminal Hacks 5 | . 5 . Robot Schematic 1 | . 1 . Robot Analysis 2 | . 2 . Unreport Threat 1 | . 1 . Recall Investigation 1 | . 1 . Fabricator Hacks . | . . . Repair Station Hacks . | . . . Recycling Unit Hacks . | . . . Scanalyzer . | . . . Garrison Access Hacks . | . . . Unauthorized Hacks 3 | . 3 . Terminals 2 | . 2 . Botnet 2 | . 2 . Fabricators . | . . . Repair Stations . | . . . Recycling Units 1 | . 1 . Tunnel 1 | . 1 . Scanalyzers . | . . . Garrison Access . | . . . Data Cores Recovered . | . . . Used . | . . . Hacking Detections 1 | . 1 . Full Trace Events 1 | . 1 . Feedback Events 1 | . 1 . Corruption 1 | . 1 . Feedback Blocked . | . . . Robot Schematics Acquired 1 | . 1 . Robots Built . | . . . Authchips . | . . . Time . | . . . Total Robot Build Rating . | . . . Part Schematics Acquired . | . . . Parts Built . | . . . Authchips . | . . . Time . | . . . Total Part Build Rating . | . . . Parts Repaired . | . . . Time . | . . . Parts Recycled . | . . . Recycled Matter . | . . . Retrieved Matter . | . . . Retrieved Components . | . . . Parts Scanalyzed . | . . . Part Schematics Acquired . | . . . Parts Damaged . | . . . Bothacking | -11 -10 -10 ------------ Run | Yrd Mat Sub Used RIF Installer . | . . . Robots Hacked . | . . . Non-combat . | . . . Combat . | . . . Robot Hacks Applied . | . . . Relay Couplers Released . | . . . Fabnet Peak Effective % . | . . . Robots Rewired . | . . . Allies Hacked . | . . . Hacks Repelled . | . . . Allies | -11 -10 -10 -------- Run | Yrd Mat Sub Total Allies . | . . . Largest Group . | . . . Highest-Rated Group . | . . . Highest-Rated Ally . | . . . Total Orders . | . . . Ally Attacks . | . . . Total Damage . | . . . Kills . | . . . Allies Corrupted . | . . . Allies Melted . | . . . Intel | -11 -10 -10 ------- Run | Yrd Mat Sub Active Infowar (turns) 226 | 3 201 22 Seismic 226 | 3 201 22 Robot Analysis Total 2 | . 2 . Derelict Logs Recovered . | . . . Drone Launches . | . . . Drone Recoveries . | . . . Exploration | -11 -10 -10 ------------- Run | Yrd Mat Sub Turns Passed 974 | 69 857 48 Spaces Moved 522 | 53 457 12 Core 98 | 50 48 . Treads 178 | 3 175 . Legs 149 | . 137 12 Wheels . | . . . Hover 97 | . 97 . Flight . | . . . Fastest Speed 50 | 50 50 190 Average Speed 139 | 56 147 190 Slowest Speed 190 | 160 190 190 Overloaded Moves . | . . . Propulsion Burnouts . | . . . Robots Hopped . | . . . Potential Cave-ins . | . . . Cave-ins Triggered . | . . . Exploration Rate (%) 21 | 3 59 2 Regions Visited 2 Branch Regions 1 Pre-discovered Areas 1 | . 1 . Known Exits Taken . | . . . Unknown Exits Taken 2 | 1 1 . Scrap Searched . | . . . Spaces Dug . | . . . Terrain Destroyed 42 | . 42 . Melee . | . . . Projectile . | . . . AOE 42 | . 42 . Terrain Rammed . | . . . Walls Destroyed . | . . . Machines Disabled . | . . . Actions | -11 -10 -10 --------- Run | Yrd Mat Sub Total 665 | 71 571 23 Wait 11 | . 10 1 Move 520 | 52 456 12 Hop . | . . . Pick Up 28 | 4 24 . Fast Attach 12 | 5 7 . Attach 7 | . 6 1 Detach 1 | 1 . . Swap 10 | . 8 2 Drop 16 | . 16 . Fire 59 | 9 43 7 Melee . | . . . Ram . | . . . Kick . | . . . Crush 1 | . 1 . Escape Stasis . | . . . Rewire . | . . . Trap . | . . . Miscellaneous . | . . . Route ------- -11/Scrapyard -10/Materials (discovered 2 exits: [*Min] / [*Sub]) -10/Subcaves History --------- Turn | Location | Event 4 | -11/Scrapyard | Discovered new exit (range 15) 70 | -11/Scrapyard | Entered Materials 223 | -10/Materials | Discovered new exit (range 11) 311 | -10/Materials | Build established: Mutant 571 | -10/Materials | Discovered new exit (range 6) 609 | -10/Materials | Core integrity fell below 50% 637 | -10/Materials | Lost 4 parts (1n1u2w) 926 | -10/Materials | Build established: Scavenger-Mutant 927 | -10/Materials | Entered Subcaves 928 | -10/Subcaves | Approached by a straggling Scientist 970 | -10/Subcaves | Core integrity fell below 20% 975 | -10/Subcaves | Destroyed by 38-D26(R) with Subdweller Machine Gun Last Messages --------------- 00812_ K-01 Serf collects debris. 00920_ System corrupted: Energy discharge (-55). LOCATION=UNKNOWN AMBIENT_HEAT=-10 GOAL=ESCAPE 00928_ V2-ELA(c): "Thank the algorithms! I was beginning to lose hope I'd never make it past all the Subs lurking out here." 00931_ V2-ELA(c): "Hey, let me tag along and I can get us both out of this nasty situation. At least I think I can... The group I got separated from was talking about a shortcut back to the UFD." 00960_ Aluminum Leg destroyed. 00961_ Z5-XEQ(R) destroyed. 00963_ System corrupted: Energy discharge (-62). 00964_ Subatomizers dissect the Sub. Machine Gun. 00966_ 8E-GZF(R) affixes Scrap Shield Fragment to Scrap Shield. Map ----- +----------------------------------------------------+ | ?????????????????????????????????????????????????? | | ?????????????????????????????????????????????????? | | ?????????????????????????????????????????????????? | | ?????????????????????????????????????????????????? | | ?????????????????????????????????????????????????? | | ?????????????????????????????????????????????????? | | ?????????????????????????????????????????????????? | | ?????????????????????????????????????????????????? | | ?????????????????????????????????????????????????? | | ?????????????????????????????????????????????????? | | ?????????????????????????????????????????????????? | | ?????????????????????????????????????????????????? | | ?????????????????????????????????????????????????? | | ?????????????????????????????????????????????????? | | ?????????????????????????????????????????????????? | | ?????????????????????????????????????????????????? | | ?????????????????????????????????????????????????? | | ???????????????????????????????????#?????????????? | | ?????????????????????????????????? #?????????????? | | ????????????????????????????????? ?????????????? | | ???????????????????????????????? R" "????????????? | | ??????????????????????????????? " "?????????????? | | ????????????????????????###### """"?????????????? | | ???????????##??????????## #???????????????? | | ???????????#""?????????# ??????????????????? | | ???????????# ????????# @R#?????????????????????? | | ???????????# ###?#### ##????????????????????? | | ?????? # " ## #%& ##???????????????????? | | ?????? " " [R #???????????????????? | | ?????? " " # #???????????????????? | | ?????? ## # #########???????????????????? | | ????# ###???#####???????????????????????????? | | ?????????????????????????????????????????????????? | | ?????????????????????????????????????????????????? | | ?????????????????????????????????????????????????? | | ?????????????????????????????????????????????????? | | ?????????????????????????????????????????????????? | | ?????????????????????????????????????????????????? | | ?????????????????????????????????????????????????? | | ?????????????????????????????????????????????????? | | ?????????????????????????????????????????????????? | | ?????????????????????????????????????????????????? | | ?????????????????????????????????????????????????? | | ?????????????????????????????????????????????????? | | ?????????????????????????????????????????????????? | | ?????????????????????????????????????????????????? | | ?????????????????????????????????????????????????? | | ?????????????????????????????????????????????????? | | ?????????????????????????????????????????????????? | | ?????????????????????????????????????????????????? | +----------------------------------------------------+ Best States ------------- Heat Dissipation 39 Energy Generation 10 Energy Capacity 250 Matter Stores 300 Matter Capacity 300 Sight Range 16 Terrain Scan Density 10 Evasion (%) 50 Recoil Reduction 2 Item Schematics ----------------- None Robot Schematics ------------------ M-13 Machinist | -10/Materials | Hacked Fabricated ------------ Nothing Repaired ---------- Nothing Alien Tech Used ----------------- None Achievements -------------- None Challenges ------------ None Game ------ Seed SupersonicMicrowarpShielding Manual? 0 Play Time 00:08:03 Cumulative 733.5 hours Start 2025.05.08 @ 13:47:26 End 2025.05.08 @ 13:54:53 Sessions 1 Manual Loads 0 Difficulty Rogue Special Mode None Game No. 168 Rogue 30 Adventurer 138 Explorer 0 Win Type - Total 11 Types 7/0/1/2/0/0/0/0/1/0 Lore% 78 Gallery% 77 Achievement% 76 Wizard Run 0 Options --------- Layout 2 ASCII 0 Keyboard 0 Movement Mouse Keybinds 0 Fullscreen 1 Font 24/Smallcaps Map View 50x49 Zoom Use 0% Tactical HUD 1 Map Filters NONE Filters NONE Steam 1 RUN: 61aa747b-18b0-41dc-be95-913dae782342